bitfinex/quotes_ETHUSD_20220115
["timestamp","ask_amount","ask_price","bid_price","bid_amount"]
[1642287443476,2.40718075,3338.4,3337.6,0.045463]
[1642287443777,0.00397897,3338.3,3337.6,0.045463]
[1642287443975,0.1198,3338.2,3337.6,0.045463]
[1642287444181,0.12321054,3338.2,3337.6,0.045463]
[1642287444375,0.00284212,3338.1,3337.6,0.045463]
[1642287444779,0.0022737,3338.0,3337.6,0.045463]
[1642287445178,0.00170527,3337.9,3337.5,0.55030352]
[1642287445578,0.00113685,3337.8,3337.5,0.55030352]
[1642287445779,0.00113685,3337.8,3337.5,0.50484052]
[1642287445978,0.00341054,3338.2,3337.5,0.50484052]
[1642287446180,0.1198,3338.1,3337.6,0.045463]
[1642287446379,0.12264212,3338.1,3337.6,0.045463]
[1642287446579,0.0022737,3338.0,3337.6,0.090926]
[1642287447031,0.00170527,3337.9,3337.6,0.045463]
[1642287447228,0.00170527,3337.9,3337.5,0.50984452]
[1642287447426,0.00113685,3337.8,3337.5,0.50984452]
[1642287450776,0.00113685,3337.8,3337.6,0.045463]
[1642287453782,0.1198,3337.7,3337.5,0.03138152]
[1642287453980,0.1198,3337.7,3337.3,3.0]
[1642287454280,0.1198,3337.7,3337.4,0.00113685]
[1642287457742,0.00113685,3337.8,3337.4,0.00113685]
[1642287458977,0.00113685,3337.8,3337.6,0.03404884]
[1642287459578,2.56435525,3337.8,3337.6,0.03404884]
[1642287459782,2.02589188,3337.7,3337.6,0.03404884]
[1642287461079,4.58911028,3337.7,3337.6,0.03404884]
[1642287461281,4.53911028,3337.7,3337.6,0.03404884]
[1642287463137,4.65891028,3337.7,3337.6,0.03404884]
[1642287463937,4.65891028,3337.7,3337.4,0.00113685]
[1642287464135,4.53911028,3337.7,3337.4,0.00113685]
[1642287465137,2.5632184,3337.6,3337.4,0.00113685]
[1642287465336,1.94219885,3337.5,3337.4,0.00113685]
[1642287465536,2.5632184,3337.6,3337.4,0.00113685]
[1642287466182,1.93044065,3337.5,3337.4,0.00113685]
[1642287466480,2.56435525,3337.8,3337.4,0.00113685]
[1642287466682,2.01409294,3337.7,3337.4,0.00113685]
[1642287467488,1.92192999,3337.7,3337.4,0.00113685]
[1642287467684,2.5632184,3337.5,3337.4,0.00113685]
[1642287468583,2.5632184,3337.6,3337.4,0.00113685]
[1642287468783,1.9308349,3337.5,3337.4,0.00113685]
[1642287468983,2.5632184,3337.6,3337.4,0.04628485]
[1642287469182,2.5632184,3337.6,3337.4,0.00113685]
[1642287469440,1.92874008,3337.5,3337.4,0.00113685]
[1642287469630,2.07974842,3337.7,3337.4,0.00113685]
[1642287469828,2.19954842,3337.7,3337.4,0.00113685]
[1642287470036,2.19954842,3337.7,3337.4,0.04659985]
[1642287470430,2.19954842,3337.7,3337.4,0.00113685]
[1642287470630,0.1198,3337.7,3337.4,0.04275885]
[1642287473281,0.00113685,3337.8,3337.4,0.04275885]
[1642287473882,0.00113685,3337.8,3337.6,0.0348272]
[1642287477735,2.21722793,3337.9,3337.6,0.0348272]
[1642287478137,0.00113685,3337.8,3337.6,0.0348272]
[1642287478938,0.00113685,3337.8,3337.4,0.04101785]
[1642287479537,0.00113685,3337.8,3337.5,0.045463]
[1642287480337,0.00113685,3337.8,3337.4,0.04101785]
[1642287480544,0.00113685,3337.8,3337.6,0.045463]
[1642287480782,0.00113685,3337.8,3337.4,0.04101785]
[1642287480981,0.00113685,3337.8,3337.4,0.08648085]
[1642287481784,0.00113685,3337.8,3337.4,0.04101785]
[1642287482181,0.00113685,3337.8,3337.5,0.045463]
[1642287483883,0.00113685,3337.8,3337.6,0.03480137]
[1642287485732,2.56426288,3337.8,3337.6,0.03480137]
[1642287486535,0.00113685,3337.8,3337.6,0.03480137]
[1642287486735,3.00113685,3337.8,3337.6,0.03480137]
[1642287486936,2.56312603,3337.7,3337.6,0.03480137]
[1642287488983,2.56312603,3337.7,3337.4,0.085344]
[1642287490888,2.56312603,3337.7,3337.5,0.045463]
[1642287491194,2.56312603,3337.7,3337.5,0.210726]
[1642287492034,2.56312603,3337.7,3337.6,0.33040477]
[1642287492436,2.56312603,3337.7,3337.6,0.37586777]
[1642287493234,2.56312603,3337.7,3337.1,9.03694445]
[1642287493433,2.56312603,3337.7,3337.2,0.433]
[1642287493634,2.56312603,3337.7,3337.2,0.43527369]
[1642287494036,2.56312603,3337.7,3337.6,0.03481495]
[1642287494837,2.56312603,3337.7,3337.3,0.1198]
[1642287495035,2.56312603,3337.7,3337.3,0.5528]
[1642287495235,2.56312603,3337.7,3337.4,0.00113685]
[1642287495435,2.56312603,3337.7,3337.5,0.1198]
[1642287495681,2.56312603,3337.7,3337.4,0.12093685]
[1642287495881,2.56312603,3337.7,3337.4,0.00113685]
[1642287498784,2.59125358,3337.7,3337.4,0.00113685]
[1642287500033,2.56312603,3337.6,3337.4,0.00113685]
[1642287504089,2.56312603,3337.6,3337.4,1.93776132]
[1642287504379,2.56312603,3337.6,3337.4,1.94643865]
[1642287504779,2.56312603,3337.6,3337.4,0.00113685]
[1642287505180,2.56312603,3337.6,3337.4,1.95354564]
[1642287506480,2.56312603,3337.6,3337.4,1.99566194]
[1642287508231,0.02812755,3337.7,3337.4,1.99566194]
[1642287509631,2.97812755,3337.8,3337.4,0.00113685]
[1642287510880,2.56279234,3337.7,3337.4,0.00113685]
[1642287513384,2.56279234,3337.7,3337.4,1.93444593]
[1642287513884,0.03506958,3337.7,3337.4,1.93444593]
[1642287518882,0.03506958,3337.7,3337.5,0.1198]
[1642287519085,0.03506958,3337.7,3337.4,2.05424593]
[1642287521386,0.03506958,3337.7,3337.4,1.93444593]
[1642287525132,0.03506958,3337.7,3337.4,1.93330908]
[1642287525332,0.03506958,3337.7,3337.3,1.30153]
[1642287525678,0.03506958,3337.7,3337.3,0.5528]
[1642287525879,0.03506958,3337.7,3337.3,0.433]
[1642287528781,0.15486958,3337.7,3337.3,0.433]
[1642287529839,2.56284775,3337.6,3337.3,0.433]
[1642287531235,0.1198,3337.5,3337.3,0.433]
[1642287532340,0.1198,3337.6,3337.3,0.433]
[1642287534680,0.03506958,3337.7,3337.3,0.433]
[1642287535481,2.5628051,3337.6,3337.3,0.433]
[1642287540784,0.5394651,3337.6,3337.3,1.18172]
[1642287540986,0.03506958,3337.7,3337.3,1.18172]
[1642287541182,0.03506958,3337.7,3337.3,1.30152]
[1642287542483,0.03506958,3337.7,3337.3,1.18172]
[1642287547937,0.151,3337.6,3337.3,1.18172]
[1642287560136,0.101,3337.6,3337.3,1.18172]
[1642287568736,0.101,3337.6,3337.4,1.92230386]
[1642287570538,0.101,3337.6,3337.3,1.18172]
[1642287571195,0.101,3337.6,3337.4,1.91893243]
[1642287572191,0.101,3337.6,3337.3,1.18172]
[1642287580694,0.101,3337.6,3337.4,1.91048396]
[1642287581791,0.051,3337.6,3337.4,1.91048396]
[1642287583238,0.051,3337.6,3337.3,1.18172]
[1642287583439,0.051,3337.6,3337.4,1.92473042]
[1642287584044,0.051,3337.6,3337.5,0.433]
[1642287593888,2.61362761,3337.6,3337.5,0.433]
[1642287594586,0.051,3337.6,3337.5,0.433]
[1642287595189,2.61362761,3337.6,3337.5,0.433]
[1642287596388,0.051,3337.6,3337.5,0.433]
[1642287598443,2.61358436,3337.6,3337.5,0.433]
[1642287600345,0.051,3337.6,3337.5,0.433]
[1642287604088,2.61356651,3337.6,3337.5,0.433]
[1642287604642,0.051,3337.6,3337.5,0.433]
[1642287605442,2.61356651,3337.6,3337.5,3.483]
[1642287605644,2.61356651,3337.6,3337.5,0.433]
[1642287606040,0.051,3337.6,3337.5,0.433]
[1642287606441,0.051,3337.6,3337.5,2.933]
[1642287607042,0.051,3337.6,3337.5,0.433]
[1642287607449,2.6135872,3337.6,3337.5,0.433]
[1642287609291,2.75863078,3337.6,3337.5,2.883]
[1642287609491,2.90367436,3337.6,3337.5,2.883]
[1642287609691,2.90367436,3337.6,3337.5,0.433]
[1642287610097,0.34108716,3337.6,3337.5,0.433]
[1642287610291,0.34108716,3337.6,3337.5,3.033]
[1642287614039,0.34108716,3337.6,3337.5,5.05975666]
[1642287614241,3.01631655,3337.8,3337.5,5.05975666]
[1642287614242,2.97812755,3337.8,3337.6,8.5]
[1642287614540,2.97812755,3337.8,3337.7,8.983]
[1642287614739,0.038189,3338.3,3337.7,8.983]
[1642287614939,0.038189,3338.3,3337.8,0.1197]
[1642287615144,0.038189,3338.3,3337.9,0.433]
[1642287615988,0.038189,3338.4,3337.9,0.433]
[1642287616389,0.00397897,3338.3,3338.0,2.03386163]
[1642287616590,0.00397897,3338.3,3338.1,0.433]
[1642287616793,0.00341054,3338.2,3338.1,0.5528]
[1642287616991,0.00341054,3338.2,3338.1,2.67219556]
[1642287617191,0.00341054,3338.2,3338.1,11.78135516]
[1642287617591,0.00341054,3338.2,3338.1,10.0608]
[1642287618390,0.00341054,3338.2,3338.1,10.8092399]
[1642287618992,0.00341054,3338.2,3338.1,10.83666023]
[1642287620247,0.00341054,3338.2,3338.1,6.73666023]
[1642287620448,0.00341054,3338.2,3338.1,6.61686023]
[1642287620653,0.00341054,3338.2,3338.1,8.77999533]
[1642287621247,0.043644,3338.6,3338.2,6.75]
[1642287621449,0.045463,3338.7,3338.3,2.43014758]
[1642287621648,0.00170527,3338.5,3338.3,0.433]
[1642287621848,0.045463,3338.9,3338.4,2.6]
[1642287622048,0.045463,3338.8,3338.5,0.433]
[1642287622948,0.045463,3338.9,3338.5,0.433]
[1642287623194,0.045463,3338.8,3338.5,0.433]
[1642287623390,0.04716827,3338.8,3338.5,0.433]
[1642287623591,0.00113685,3338.7,3338.5,0.433]
[1642287628946,0.00113685,3338.7,3338.5,0.46345141]
[1642287632001,0.00113685,3338.7,3338.6,4.6698]
[1642287632197,0.00113685,3338.7,3338.6,5.1028]
[1642287632400,0.00113685,3338.7,3338.6,4.983]
[1642287634299,0.80113685,3338.7,3338.6,0.433]
[1642287638044,0.80113685,3338.7,3338.6,3.833]
[1642287638694,0.80017921,3338.7,3338.6,3.833]
[1642287641956,0.80017921,3338.7,3338.6,0.433]
[1642287642949,0.80017921,3338.7,3338.6,3.033]
[1642287647097,0.80017921,3338.7,3338.6,3.1528]
[1642287647897,0.80017921,3338.7,3338.6,5.6528]
[1642287653496,0.8,3338.7,3338.6,5.6528]
[1642287653697,0.8,3338.7,3338.6,3.1528]
[1642287653898,0.8,3338.7,3338.6,3.033]
[1642287656400,0.845463,3338.7,3338.6,3.033]
[1642287656802,3.40730252,3338.7,3338.6,3.033]
[1642287657453,0.845463,3338.7,3338.6,3.033]
[1642287658254,3.40730252,3338.7,3338.6,3.033]
[1642287658554,3.36183952,3338.7,3338.6,3.033]
[1642287661800,3.36183952,3338.7,3338.6,5.683]
[1642287662406,2.56183952,3338.7,3338.6,5.683]
[1642287662903,0.045463,3339.0,3338.6,5.683]
[1642287663202,0.00131606,3338.9,3338.7,0.1198]
[1642287663401,0.00131606,3338.9,3338.8,5.383]
[1642287663601,2.56298002,3338.9,3338.8,5.383]
[1642287664003,2.56298002,3338.9,3338.8,0.433]
[1642287664201,0.00131606,3338.9,3338.8,0.433]
[1642287664659,0.00131606,3338.9,3338.8,3.433]
[1642287665059,2.56298002,3338.9,3338.8,3.433]
[1642287665460,5.60844302,3338.9,3338.8,3.433]
[1642287669108,5.60844302,3338.9,3338.8,3.46343265]
[1642287670112,5.55844302,3338.9,3338.8,3.46343265]
[1642287670309,5.55844302,3338.9,3338.8,0.46343265]
[1642287672859,5.51298002,3338.9,3338.8,0.46343265]
[1642287677603,5.51298002,3338.9,3338.8,3.16343265]
[1642287678802,5.55844302,3338.9,3338.8,0.46343265]
[1642287688256,5.51298002,3338.9,3338.8,0.46343265]
[1642287688954,5.55844302,3338.9,3338.8,0.46343265]
[1642287692403,5.51298002,3338.9,3338.8,0.46343265]
[1642287694760,5.55844302,3338.9,3338.8,0.46343265]
[1642287696160,5.55844302,3338.9,3338.3,0.1198]
[1642287696161,5.67824302,3338.9,3338.3,0.1198]
[1642287696364,0.1198,3338.8,3338.4,0.433]
[1642287696560,0.045463,3338.5,3338.4,0.00284212]
[1642287696762,0.165263,3338.5,3337.4,1.69693527]
[1642287696959,0.165263,3338.5,3337.5,0.433]
[1642287696960,0.1198,3338.4,3337.5,0.433]
[1642287697159,0.045463,3337.6,3337.5,0.43811581]
[1642287697361,0.045463,3337.6,3337.5,6.18811581]
[1642287697760,0.045463,3337.7,3337.5,6.18811581]
[1642287698204,0.045463,3337.7,3337.6,6.90454739]
[1642287698402,0.045463,3337.7,3337.6,6.97538532]
[1642287700601,0.045463,3337.9,3337.6,6.97538532]
[1642287700802,0.045463,3338.0,3337.6,6.97538532]
[1642287701003,0.045463,3338.0,3337.7,0.00397897]
[1642287702052,0.045463,3338.1,3337.7,0.00397897]
[1642287702853,0.045463,3338.1,3337.8,0.433]
[1642287703257,0.045463,3338.1,3337.9,0.00284212]
[1642287703452,0.045463,3338.1,3337.9,0.43584212]
[1642287703857,0.045463,3338.2,3338.0,2.95227369]
[1642287704055,0.03013444,3338.1,3338.0,2.95227369]
[1642287704253,0.03013444,3338.1,3337.9,0.433]
[1642287704453,0.045463,3338.0,3337.9,0.433]
[1642287704652,0.07559744,3338.1,3337.9,0.433]
[1642287704852,0.03013444,3338.1,3337.9,0.43584212]
[1642287705054,0.07559744,3338.1,3337.9,0.43584212]
[1642287705805,0.045463,3338.0,3337.9,0.43584212]
[1642287706303,0.03013444,3338.1,3337.9,3.18584212]
[1642287706509,0.045463,3338.0,3337.9,3.18584212]
[1642287706704,0.03013444,3338.1,3337.9,3.183]
[1642287707105,0.03013444,3338.1,3338.0,0.00227369]
[1642287708407,0.07559744,3338.1,3338.0,0.00227369]
[1642287715107,3.07559744,3338.1,3338.0,0.00227369]
[1642287716105,3.07559744,3338.1,3338.0,2.60227369]
[1642287716962,3.07559744,3338.1,3338.0,0.00227369]
[1642287718354,3.0243382,3338.1,3338.0,0.00227369]
[1642287718957,3.05445994,3338.1,3338.0,0.00227369]
[1642287719758,5.1915803,3338.1,3338.0,0.00227369]
[1642287719958,3.17425994,3338.1,3338.0,0.00227369]
[1642287720156,3.17425994,3338.1,3337.9,0.00284212]
[1642287720357,3.14992174,3338.1,3337.9,0.00284212]
[1642287720557,0.045463,3338.0,3337.9,0.00284212]
[1642287720804,2.27215872,3338.0,3337.9,0.00284212]
[1642287721004,0.165263,3338.0,3337.9,0.00284212]
[1642287721605,2.72735353,3338.0,3337.9,0.00284212]
[1642287723007,4.84054611,3338.0,3337.9,0.00284212]
[1642287724008,4.84054611,3338.0,3337.9,0.0362336]
[1642287725059,2.72735353,3338.0,3337.9,0.0362336]
[1642287725261,4.64716661,3338.0,3337.9,0.0362336]
[1642287725866,4.64716661,3338.0,3337.8,0.049848]
[1642287725867,2.4,3337.9,3337.8,0.049848]
[1642287726062,4.62669572,3337.9,3337.8,0.049848]
[1642287726259,2.5198,3337.9,3337.8,0.049848]
[1642287726461,2.5198,3337.9,3337.4,0.45952705]
[1642287726462,2.3,3337.8,3337.4,0.45952705]
[1642287726661,0.1198,3337.7,3337.4,0.45952705]
[1642287726861,0.1198,3337.7,3337.5,0.00227369]
[1642287727063,0.0120482,3337.6,3337.2,0.1198]
[1642287727267,3.145463,3337.3,3337.2,0.1198]
[1642287727465,0.045463,3337.3,3337.2,0.1198]
[1642287727965,4.095463,3337.3,3337.2,0.1198]
[1642287728214,3.2,3337.2,3337.1,7.06653722]
[1642287728414,6.745463,3337.2,3336.8,7.499]
[1642287728612,6.7,3337.2,3337.1,0.0022737]
[1642287728813,3.58980849,3337.2,3337.1,0.0022737]
[1642287729013,7.83980849,3337.2,3337.1,0.0022737]
[1642287729613,9.94670421,3337.2,3337.1,0.0022737]
[1642287729823,10.37970421,3337.2,3337.1,0.0022737]
[1642287730215,10.83489902,3337.2,3337.1,0.0022737]
[1642287730416,6.24055353,3337.2,3337.1,0.0022737]
[1642287731016,8.89055353,3337.2,3337.1,0.0022737]
[1642287732061,8.89055353,3337.2,3335.8,0.1198]
[1642287732062,1.4984642,3337.1,3335.8,0.1198]
[1642287732261,3.595463,3336.6,3335.8,0.1198]
[1642287732467,3.595463,3336.6,3336.5,4.6e-05]
[1642287732661,3.595463,3336.6,3336.5,0.00345654]
[1642287733563,3.715263,3336.6,3336.5,0.00345654]
[1642287733762,6.15755353,3336.6,3336.5,0.00345654]
[1642287733963,6.30810718,3336.6,3336.5,0.00345654]
[1642287734162,6.18830718,3336.6,3336.5,0.00345654]
[1642287734562,7.21510718,3336.6,3336.5,0.00345654]
[1642287734971,3.66510718,3336.6,3336.5,0.00345654]
[1642287735164,3.61964418,3336.6,3336.5,0.00345654]
[1642287735363,2.59284418,3336.6,3336.5,0.00345654]
[1642287736009,2.63830718,3336.6,3336.5,0.00345654]
[1642287736210,5.63830718,3336.6,3336.5,0.00345654]
[1642287736911,3.07621665,3336.6,3336.5,0.00345654]
[1642287739315,3.03075365,3336.6,3336.5,0.00345654]
[1642287739770,3.03075365,3336.6,3336.5,0.43645654]
[1642287739967,3.03075365,3336.6,3336.5,3.93645654]
[1642287740171,3.2386,3337.3,3336.5,3.93645654]
[1642287740370,1.3591,3337.7,3336.5,3.93645654]
[1642287740567,0.045463,3337.4,3336.6,0.12264211]
[1642287740768,0.00284212,3337.6,3336.6,0.00284211]
[1642287741067,0.00341054,3337.7,3336.7,0.00227369]
[1642287741268,0.045463,3337.1,3336.6,0.00284211]
[1642287742067,0.045463,3336.7,3336.6,0.00284211]
[1642287742269,2.56287742,3337.6,3336.6,0.00284211]
[1642287742469,0.045463,3337.2,3336.7,0.1198]
[1642287742870,0.045463,3337.2,3336.8,0.00170527]
[1642287744115,0.045463,3337.2,3336.9,0.02770079]
[1642287744320,0.1198,3337.8,3336.9,0.02770079]
[1642287744516,0.045463,3337.1,3336.9,0.02770079]
[1642287744719,0.045463,3337.3,3336.9,0.02770079]
[1642287745118,0.00341054,3337.7,3336.9,0.02770079]
[1642287745420,0.12264212,3337.6,3336.9,0.02770079]
[1642287745617,0.045463,3337.0,3336.9,0.02770079]
[1642287745816,0.0022737,3337.5,3336.9,0.02770079]
[1642287746017,0.0022737,3337.5,3336.9,0.02883763]
[1642287746218,0.00170527,3337.4,3336.9,0.02883763]
[1642287746420,0.1198,3337.3,3336.9,0.02883763]
[1642287746617,0.12093685,3337.3,3336.9,0.02883763]
[1642287748465,0.00113685,3337.3,3336.9,0.02883763]
[1642287749272,0.04659985,3337.3,3336.9,0.00113684]
[1642287749871,0.1144,3340.2,3337.2,6.9128268]
[1642287749872,0.045463,3338.2,3337.2,6.9128268]
[1642287750074,1.62228816,3338.4,3337.3,2.60418386]
[1642287750269,0.00341054,3337.9,3337.4,0.1198]
[1642287750470,0.00341054,3337.9,3337.5,0.433]
[1642287750718,0.00284212,3337.8,3337.6,0.1198]
[1642287750911,0.00284212,3337.8,3337.7,0.433]
[1642287751111,2.56266311,3338.1,3337.7,0.433]
[1642287751512,0.00397897,3338.0,3337.7,0.433]
[1642287751812,0.04944197,3338.0,3337.7,0.433]
[1642287752011,0.00341054,3337.9,3337.7,0.433]
[1642287752412,0.00284212,3337.8,3337.7,0.433]
[1642287754011,0.00284212,3337.8,3337.7,0.45802351]
[1642287756061,3.00284212,3337.8,3337.7,0.45802351]
[1642287756261,3.04830512,3337.8,3337.7,0.45802351]
[1642287756861,3.00284212,3337.8,3337.7,0.45802351]
[1642287757665,3.04830512,3337.8,3337.7,0.45802351]
[1642287757867,3.00284212,3337.8,3337.7,0.45802351]
[1642287759012,3.00284212,3337.8,3337.7,0.433]
[1642287759410,3.04830512,3337.8,3337.7,0.433]
[1642287759609,3.00284212,3337.8,3337.7,0.433]
[1642287767520,3.04830512,3337.8,3337.7,0.433]
[1642287767721,3.00284212,3337.8,3337.6,0.03021118]
[1642287767924,3.04830512,3337.8,3337.6,0.03021118]
[1642287768124,0.00227369,3337.7,3337.6,0.03021118]
[1642287769124,0.00227369,3337.7,3337.3,0.433]
[1642287769562,0.00170527,3337.6,3337.3,0.433]
[1642287769960,0.00113685,3337.5,3337.3,0.433]
[1642287770362,0.00170527,3337.6,3337.3,0.433]
[1642287770763,0.00113685,3337.5,3337.3,0.433]
[1642287771060,0.00170527,3337.6,3337.3,0.433]
[1642287771467,0.00113685,3337.5,3337.3,0.433]
[1642287771763,0.045463,3337.7,3337.3,0.433]
[1642287771764,0.00170527,3337.6,3337.3,0.433]
[1642287772162,0.00113685,3337.5,3337.3,0.433]
[1642287772364,0.00113685,3337.5,3337.4,5.86141808]
[1642287772666,0.00113685,3337.5,3337.3,0.433]
[1642287774012,0.00113685,3337.5,3337.3,0.46326521]
[1642287780569,2.58515568,3337.8,3337.4,2.5]
[1642287780819,2.58515568,3337.8,3337.4,2.933]
[1642287781018,0.00113684,3337.7,3337.4,2.933]
[1642287782621,0.00113684,3337.7,3337.4,0.433]
[1642287784025,0.00113684,3337.7,3337.6,0.0301466]
[1642287785263,0.12093684,3337.7,3337.6,0.0301466]
[1642287787363,0.00113684,3337.7,3337.6,0.0301466]
[1642287788813,2.56364544,3337.7,3337.6,0.0301466]
[1642287789012,2.56364544,3337.7,3337.4,0.433]
[1642287792062,2.51364544,3337.7,3337.4,0.433]
[1642287792263,2.58515568,3337.8,3337.5,0.00113684]
[1642287792466,2.58515568,3337.8,3337.6,0.433]
[1642287793276,0.1198,3338.5,3337.7,6.7]
[1642287793463,1.55228616,3338.6,3337.8,0.45431916]
[1642287793663,0.00397897,3338.4,3337.8,0.433]
[1642287794161,0.00341055,3338.3,3337.8,0.433]
[1642287794563,0.00284212,3338.2,3337.9,0.6735831]
[1642287794763,0.00284212,3338.2,3338.0,0.5528]
[1642287794963,0.0022737,3338.1,3338.0,0.5528]
[1642287795362,0.0022737,3338.1,3338.0,4.6528]
[1642287796417,0.0020717,3338.6,3338.0,0.5528]
[1642287796821,0.00227369,3338.5,3338.0,0.5528]
[1642287797216,3.0,3338.1,3338.0,0.5528]
[1642287798518,1.50248816,3339.2,3338.0,0.5528]
[1642287798726,0.79218764,3339.2,3338.4,5.408]
[1642287798919,2.25850772,3339.5,3338.4,5.408]
[1642287798920,2.25850772,3339.5,3338.8,0.01227279]
[1642287799117,3.04412026,3339.7,3339.3,5.408]
[1642287799318,3.04412026,3339.7,3339.4,1.23857323]
[1642287799568,3.04412026,3339.7,3339.6,5.408]
[1642287799766,3.04412026,3339.7,3339.6,5.9607]
[1642287799966,0.00454738,3339.7,3339.6,5.9607]
[1642287800168,0.00454738,3339.7,3339.6,5.841]
[1642287800472,0.12424738,3339.7,3339.6,5.841]
[1642287800666,0.12424738,3339.7,3339.6,0.433]
[1642287801067,0.12424738,3339.7,3339.1,0.433]
[1642287801266,0.1197,3339.6,3339.1,0.433]
[1642287801467,0.12367896,3339.6,3338.7,8.7199]
[1642287801665,0.00341054,3339.5,3338.6,3.9148]
[1642287801865,0.1197,3339.4,3338.6,3.9148]
[1642287802066,0.1197,3339.4,3338.7,0.00113685]
[1642287802067,0.12254211,3339.4,3338.7,0.00113685]
[1642287802266,0.00227369,3339.3,3338.7,0.00113685]
[1642287802465,0.1197,3339.2,3338.7,0.00113685]
[1642287802666,0.12140527,3339.2,3338.7,0.00113685]
[1642287802865,0.00113684,3339.1,3338.7,0.00113685]
[1642287803072,0.1197,3339.0,3338.7,0.00113685]
[1642287804120,0.1197,3339.0,3338.8,0.03030984]
[1642287805325,0.00113684,3339.1,3338.8,0.03030984]
[1642287807068,3.00113684,3339.1,3338.8,0.03030984]
[1642287811120,3.00113684,3339.1,3338.9,0.1197]
[1642287812416,3.00113684,3339.1,3338.9,3.6197]
[1642287814115,2.95113684,3339.1,3338.9,3.6197]
[1642287819718,2.95113684,3339.1,3338.9,3.5]
[1642287826118,2.95113684,3339.1,3339.0,0.1197]
[1642287826920,2.95113684,3339.1,3339.0,2.4697]
[1642287827320,2.95113684,3339.1,3339.0,0.1197]
[1642287829125,2.95113684,3339.1,3339.0,3.6197]
[1642287829570,2.95113684,3339.1,3339.0,3.5]
[1642287830165,2.95113684,3339.1,3338.9,3.6197]
[1642287834916,2.94315765,3339.1,3338.9,3.6197]
[1642287839375,2.94315765,3339.1,3338.9,0.1197]
[1642287841518,2.94315765,3339.1,3338.9,3.6197]
[1642287842922,2.94315765,3339.1,3338.9,0.1197]
[1642287848819,2.94315765,3339.1,3339.0,8.378463]
[1642287849016,2.94315765,3339.1,3339.0,8.496863]
[1642287849319,2.94315765,3339.1,3339.0,8.497663]
[1642287849516,2.94315765,3339.1,3339.0,8.500063]
[1642287849721,2.94315765,3339.1,3339.0,8.504063]
[1642287849916,0.1197,3339.8,3339.1,7.95]
[1642287850117,0.1197,3339.8,3339.5,0.6732571]
[1642287850321,0.00341054,3339.7,3339.6,0.44741597]
[1642287850515,0.00341054,3339.7,3339.6,0.6663]
[1642287850714,0.00341054,3339.7,3339.6,8.6171]
[1642287850914,0.00341054,3339.7,3339.6,8.6163]
[1642287851116,0.00341054,3339.7,3339.6,8.6179]
[1642287851317,0.00341054,3339.7,3339.6,8.6187]
[1642287851616,0.00341054,3339.7,3339.6,8.6203]
[1642287851816,0.00341054,3339.7,3339.6,8.6227]
[1642287852066,0.00341054,3339.7,3339.6,8.6235]
[1642287852469,0.00341054,3339.7,3339.6,8.6291]
[1642287852667,0.272106,3340.8,3339.7,7.9]
[1642287852871,0.272106,3340.8,3340.1,0.045463]
[1642287853069,0.00568424,3340.7,3340.2,0.433]
[1642287853468,0.00511582,3340.6,3340.2,0.433]
[1642287853869,0.00454739,3340.5,3340.2,0.433]
[1642287854269,0.00397897,3340.4,3340.2,0.433]
[1642287854469,0.00397897,3340.4,3340.2,1.18089]
[1642287854669,0.272106,3340.8,3340.3,0.6731285]
[1642287854874,0.272106,3340.8,3340.4,0.433]
[1642287855068,0.00511582,3340.6,3340.4,0.433]
[1642287855472,0.00454739,3340.5,3340.4,0.433]
[1642287856616,0.00454739,3340.5,3340.4,3.983]
[1642287857525,0.00454739,3340.5,3340.4,7.183]
[1642287858523,3.00454739,3340.5,3340.4,7.183]
[1642287859322,3.00454739,3340.5,3340.4,4.25840306]
[1642287861972,3.00454739,3340.5,3340.4,7.80386606]
[1642287862170,3.00454739,3340.5,3340.4,7.92226606]
[1642287862371,2.00454739,3340.5,3340.4,12.27546606]
[1642287862573,2.00454739,3340.5,3340.4,15.90076606]
[1642287862776,2.00454739,3340.5,3340.4,12.39996606]
[1642287862972,0.272106,3340.8,3340.5,8.69775]
[1642287863254,0.272106,3340.8,3340.7,7.995463]
[1642287863440,0.272106,3340.8,3340.7,8.428463]
[1642287863638,0.27381127,3340.8,3340.7,8.543663]
[1642287863841,0.27381127,3340.8,3340.7,0.478463]
[1642287864040,0.27381127,3340.8,3340.7,0.433]
[1642287864041,1.64042321,3340.8,3340.7,0.433]
[1642287864241,3.02026042,3340.8,3340.4,7.241]
[1642287864441,3.02026042,3340.8,3340.4,3.6197]
[1642287864840,0.00113685,3340.7,3340.4,3.665163]
[1642287865345,0.00113685,3340.7,3340.4,0.165163]
[1642287865741,0.00113685,3340.7,3340.3,0.02857138]
[1642287865941,0.1197,3340.6,3340.3,0.02857138]
[1642287866343,0.1197,3340.6,3340.4,0.045463]
[1642287866541,0.00113685,3340.7,3340.4,0.045463]
[1642287868269,3.00113685,3340.7,3340.4,0.045463]
[1642287869071,3.00113685,3340.7,3340.6,0.02489014]
[1642287873929,3.00113685,3340.7,3340.5,0.81831567]
[1642287874329,3.00113685,3340.7,3340.5,0.77285267]
[1642287875673,3.00113685,3340.7,3340.5,0.02492357]
[1642287877980,3.00113685,3340.7,3340.5,3.52492357]
[1642287878233,3.00113685,3340.7,3340.5,0.02492357]
[1642287879024,3.00113685,3340.7,3340.4,0.045463]
[1642287880828,3.00113685,3340.7,3340.3,0.02509612]
[1642287883768,3.00113685,3340.7,3340.5,1.33970681]
[1642287883967,3.00113685,3340.7,3340.5,1.89240681]
[1642287884168,3.00113685,3340.7,3340.6,5.82015472]
[1642287884770,3.00113685,3340.7,3340.6,6.25315472]
[1642287886222,3.00113685,3340.7,3340.6,8.45315472]
[1642287886423,2.00113685,3340.7,3340.6,6.25315472]
[1642287889025,2.00113685,3340.7,3340.6,6.27802764]
[1642287889224,0.272106,3340.8,3340.6,6.27802764]
[1642287889470,0.272106,3340.8,3340.7,5.21978045]
[1642287889672,0.272106,3340.8,3340.7,5.65278045]
[1642287890274,0.222106,3340.8,3340.7,5.65278045]
[1642287890471,0.222106,3340.8,3340.7,1.85278045]
[1642287890773,0.172106,3340.8,3340.7,4.30278045]
[1642287890972,0.172106,3340.8,3340.7,1.85278045]
[1642287893074,0.172106,3340.8,3340.7,4.50278045]
[1642287893322,0.172106,3340.8,3340.7,3.083]
[1642287894124,0.172106,3340.8,3340.7,3.128463]